fUST/lending_fUST_20240604
["ID","MTS","AMOUNT","RATE_DAILY","PERIOD"]
[328492632,1717444250209,-4301.249506,0.00026886,2]
[328492633,1717444250218,-4301.249506,0.00026886,2]
[328492634,1717444250227,-157.30812488,0.00026895,30]
[328492635,1717444250237,-167.84,0.000269,3]
[328492636,1717444250245,-167.84,0.000269,3]
[328492637,1717444250254,-167.84,0.000269,3]
[328492638,1717444250263,-167.84,0.000269,3]
[328492639,1717444250273,-167.84,0.000269,3]
[328492640,1717444250282,-167.84,0.000269,3]
[328492641,1717444250291,-167.84,0.000269,3]
[328492642,1717444250299,-167.84,0.000269,3]
[328492643,1717444250308,-167.84,0.000269,3]
[328492644,1717444250317,-167.84,0.000269,3]
[328492645,1717444250326,-167.84,0.000269,3]
[328492646,1717444250335,-167.84,0.000269,3]
[328492647,1717444250344,-167.84,0.000269,3]
[328492648,1717444250353,-167.84,0.000269,3]
[328492649,1717444250362,-167.84,0.000269,3]
[328492650,1717444250374,-167.84,0.000269,3]
[328492651,1717444250383,-167.84,0.000269,3]
[328492652,1717444250392,-167.84,0.000269,3]
[328492653,1717444250402,-167.84,0.000269,3]
[328492654,1717444250414,-167.84,0.000269,3]
[328492655,1717444250424,-310.025431,0.000269,2]
[328492656,1717444250433,-310.025431,0.000269,2]
[328492657,1717444250443,-151.0,0.000269,2]
[328492658,1717444250452,-774.46563,0.000269,2]
[328492659,1717444250461,-774.46563,0.000269,2]
[328492660,1717444250470,-165.692403,0.000269,2]
[328492661,1717444250481,-152.387097,0.000269,2]
[328492662,1717444250490,-165.692403,0.000269,2]
[328492663,1717444250500,-3854.870232,0.000269,2]
[328492664,1717444250509,-152.387097,0.000269,2]
[328492665,1717444250519,-3854.870232,0.000269,2]
[328492666,1717444250528,-151.0,0.000269,2]
[328492667,1717444250537,-151.0,0.000269,2]
[328492668,1717444250546,-1028.109678,0.000269,2]
[328492669,1717444250555,-1028.109678,0.000269,2]
[328492670,1717444250564,-842.646001,0.000269,2]
[328492671,1717444250573,-842.646006,0.000269,2]
[328492672,1717444250582,-2569.953659,0.000269,2]
[328492673,1717444250590,-2569.953663,0.000269,2]
[328492674,1717444250599,-151.0,0.000269,2]
[328492675,1717444250608,-4301.249506,0.000269,2]
[328492676,1717444250618,-4301.24950311,0.000269,2]
[328492677,1717444250628,-157.30812488,0.00026908,30]
[328492678,1717444250637,-157.30812488,0.00026917,30]
[328492679,1717444250646,-157.30812488,0.00026937,30]
[328492680,1717444250655,-157.30812488,0.00026937,30]
[328492681,1717444250664,-157.30812488,0.00026939,30]
[328492682,1717444250673,-157.30812488,0.00026946,30]
[328492683,1717444250682,-157.30812488,0.00026952,30]
[328492684,1717444250691,-157.30812488,0.00026962,30]
[328492685,1717444250700,-157.30812488,0.00026967,30]
[328492686,1717444250709,-157.30812488,0.00026973,30]
[328492687,1717444250718,-157.30812488,0.00026977,30]
[328492688,1717444250727,-151.0,0.00026983,2]
[328492689,1717444250736,-151.0,0.00026983,2]
[328492690,1717444250745,-151.0,0.00026983,2]
[328492691,1717444250754,-151.0,0.00026983,2]
[328492692,1717444250763,-176.789799,0.00026983,2]
[328492693,1717444250772,-176.789799,0.00026983,2]
[328492694,1717444250781,-3980.906353,0.00026983,2]
[328492695,1717444250790,-2326.961932,0.00026983,2]
[328492696,1717444250799,-3980.906353,0.00026983,2]
[328492697,1717444250808,-2326.961932,0.00026983,2]
[328492698,1717444250816,-157.30812488,0.00026983,30]
[328492699,1717444250826,-157.30812488,0.00026991,30]
[328492700,1717444250835,-72783.10041756,0.00027,2]
[328492701,1717444250844,-196.790134,0.00027,2]
[328492702,1717444250854,-196.790134,0.00027,2]
[328492703,1717444250863,-151.0,0.00027,2]
[328492704,1717444250872,-151.0,0.00027,2]
[328492705,1717444250881,-151.0,0.00027,2]
[328492706,1717444250890,-151.0,0.00027,2]
[328492707,1717444250899,-151.0,0.00027,2]
[328492708,1717444250908,-889.431551,0.00027,2]
[328492709,1717444250917,-889.431551,0.00027,2]
[328492710,1717444250925,-151.0,0.00027,2]
[328492711,1717444250934,-151.0,0.00027,2]
[328492712,1717444250943,-151.0,0.00027,2]
[328492713,1717444250951,-151.0,0.00027,2]
[328492714,1717444250960,-151.0,0.00027,2]
[328492715,1717444250969,-151.0,0.00027,2]
[328492716,1717444250978,-279.37315,0.00027,2]
[328492717,1717444250987,-176.789799,0.00027,2]
[328492718,1717444250995,-176.789799,0.00027,2]
[328492719,1717444251005,-176.789799,0.00027,2]
[328492720,1717444251014,-176.789794,0.00027,2]
[328492721,1717444251023,-310.025431,0.00027,2]
[328492722,1717444251032,-310.025431,0.00027,2]
[328492723,1717444251041,-310.025431,0.00027,2]
[328492724,1717444251049,-310.025423,0.00027,2]
[328492725,1717444251058,-3980.906353,0.00027,2]
[328492726,1717444251067,-3980.906353,0.00027,2]
[328492727,1717444251076,-2326.961932,0.00027,2]
[328492728,1717444251084,-2326.961932,0.00027,2]
[328492729,1717444251093,-3980.906353,0.00027,2]
[328492730,1717444251102,-3980.90636,0.00027,2]
[328492731,1717444251111,-2326.961932,0.00027,2]
[328492732,1717444251119,-2326.961935,0.00027,2]
[328492733,1717444251129,-151.0,0.00027,2]
[328492734,1717444251138,-151.0,0.00027,2]
[328492735,1717444251147,-774.46563,0.00027,2]
[328492736,1717444251156,-774.46563182,0.00027,2]
[328492737,1717444251165,-165.692403,0.00027,2]
[328492738,1717444251174,-152.387097,0.00027,2]
[328492739,1717444251184,-152.387097,0.00027,2]
[328492740,1717444251193,-165.692405,0.00027,2]
[328492741,1717444251202,-152.387097,0.00027,2]
[328492742,1717444251211,-3854.870232,0.00027,2]
[328492743,1717444251221,-3854.870232,0.00027,2]
[328492744,1717444251229,-152.387089,0.00027,2]
[328492745,1717444251239,-3854.870232,0.00027,2]
[328492746,1717444251248,-3854.87023,0.00027,2]
[328492747,1717444251257,-180.564873,0.00027,2]
[328492748,1717444251266,-151.0,0.00027,2]
[328492749,1717444251275,-1028.109678,0.00027,2]
[328492750,1717444251284,-1028.109678,0.00027,2]
[328492751,1717444251293,-1028.109678,0.00027,2]
[328492752,1717444251302,-1028.109687,0.00027,2]
[328492753,1717444251312,-163.57299196,0.00027039,2]
[328492754,1717444251321,-276.65363854,0.00027066,2]
[328492755,1717444251330,-276.65363854,0.00027098,2]
[328492756,1717444251339,-153.12327169,0.00027183,2]
[328492757,1717444251348,-160.25575118,0.00027215,2]
[328492758,1717444251357,-276.65363854,0.00027232,2]
[328492759,1717444251367,-163.9206826,0.00027295,2]
[328492760,1717444251377,-838.89524628,0.00027295,2]
[328492761,1717444251389,-196.790134,0.00027297,2]
[328492762,1717444251398,-196.790134,0.00027297,2]
[328492763,1717444251410,-156.633037,0.00027297,2]
[328492764,1717444251419,-151.0,0.00027297,2]
[328492765,1717444251428,-151.0,0.00027297,2]
[328492766,1717444251437,-151.0,0.00027297,2]
[328492767,1717444251448,-151.0,0.00027297,2]
[328492768,1717444251458,-214.298576,0.00027297,2]
[328492769,1717444251467,-889.431551,0.00027297,2]
[328492770,1717444251476,-889.431551,0.00027297,2]
[328492771,1717444251487,-151.0,0.00027297,2]
[328492772,1717444251497,-151.0,0.00027297,2]
[328492773,1717444251506,-151.0,0.00027297,2]
[328492774,1717444251515,-270.0,0.000273,2]
[328492775,1717444251525,-943.61005253,0.00027304,2]
[328492776,1717444251534,-151.0,0.00027352,7]
[328492777,1717444251544,-151.0,0.00027352,7]
[328492778,1717444251553,-153.0,0.0002737,2]
[328492779,1717444251563,-153.0,0.0002737,2]
[328492780,1717444251572,-153.0,0.0002737,2]
[328492781,1717444251581,-153.0,0.0002737,2]
[328492782,1717444251591,-163.57299196,0.00027387,2]
[328492783,1717444251601,-546.16721353,0.00027392,2]
[328492784,1717444251611,-280.65986406,0.00027393,2]
[328492785,1717444251620,-155.23710437,0.00027393,2]
[328492786,1717444251630,-2070.16185734,0.00027393,2]
[328492787,1717444251639,-190.9342862,0.00027393,2]
[328492788,1717444251648,-506.51848556,0.00027393,2]
[328492789,1717444251658,-192.24103157,0.00027393,2]
[328492790,1717444251667,-155.34009284,0.00027393,2]
[328492791,1717444251676,-1153.52232717,0.00027393,2]
[328492792,1717444251685,-528.00496683,0.00027393,2]
[328492793,1717444251695,-192.55509511,0.00027393,2]
[328492794,1717444251704,-835.63915344,0.00027393,2]
[328492795,1717444251714,-381.18359518,0.00027393,2]
[328492796,1717444251723,-220.59488031,0.00027393,2]
[328492797,1717444251732,-284.86903597,0.00027393,2]
[328492798,1717444251742,-1684.18494393,0.00027393,2]
[328492799,1717444251752,-283.36762168,0.00027393,2]
[328492800,1717444251762,-795.88538941,0.00027393,2]
[328492801,1717444251772,-1631.38626488,0.00027393,2]
[328492802,1717444251781,-156.59595234,0.00027393,2]
[328492803,1717444251790,-492.28215197,0.00027393,2]
[328492804,1717444251800,-151.0,0.00027393,2]
[328492805,1717444251808,-889.431551,0.00027393,2]
[328492806,1717444251818,-889.431551,0.00027393,2]
[328492807,1717444251828,-151.0,0.00027393,2]
[328492808,1717444251837,-151.0,0.00027393,2]
[328492809,1717444251847,-553.86022404,0.00027394,2]
[328492810,1717444251856,-59454.89559488,0.00027394,2]
[328492811,1717444251865,-196.790134,0.00027394,2]
[328492812,1717444251875,-196.790134,0.00027394,2]
[328492813,1717444251884,-151.0,0.00027394,2]
[328492814,1717444251893,-151.0,0.00027394,2]
[328492815,1717444251903,-151.0,0.00027394,2]
[328492816,1717444251912,-151.0,0.00027394,2]
[328492817,1717444251921,-889.431551,0.00027394,2]
[328492818,1717444251930,-889.431551,0.00027394,2]
[328492819,1717444251939,-151.0,0.00027394,2]
[328492820,1717444251948,-155.74857925,0.00027395,2]
[328492821,1717444251958,-973.80463585,0.00027395,2]
[328492822,1717444251967,-270.18744518,0.00027395,2]
[328492823,1717444251977,-160.37750176,0.00027395,2]
[328492824,1717444251986,-288.35761329,0.00027395,2]
[328492825,1717444251996,-218.97724921,0.00027395,2]
[328492826,1717444252005,-155.50182763,0.00027395,2]
[328492827,1717444252015,-156.52852301,0.00027395,2]
[328492828,1717444252024,-280.57051932,0.00027395,2]
[328492829,1717444252033,-551.32951369,0.00027395,2]
[328492830,1717444252042,-356.74854806,0.00027395,2]
[328492831,1717444252051,-155.01686895,0.00027395,30]
[328492832,1717444252061,-208.75177812,0.00027395,2]
[328492833,1717444252070,-322.557,0.00027395,2]
[328492834,1717444252079,-556.08647357,0.00027395,2]
[328492835,1717444252089,-155.79478388,0.00027395,2]
[328492836,1717444252098,-1882.99442975,0.00027395,2]
[328492837,1717444252107,-685.82755124,0.00027395,2]
[328492838,1717444252116,-1417.20955284,0.00027395,2]
[328492839,1717444252126,-665.61160227,0.00027395,10]
[328492840,1717444252135,-386.71545082,0.00027395,2]
[328492841,1717444252144,-290.81985735,0.00027395,2]
[328492842,1717444252153,-5368.84246029,0.00027395,2]
[328492843,1717444252162,-274.92915268,0.00027395,2]
[328492844,1717444252172,-9894.38286121,0.00027395,2]
[328492845,1717444252181,-393.30017093,0.00027395,2]
[328492846,1717444252190,-633.65622827,0.00027395,2]
[328492847,1717444252199,-385.41031298,0.00027395,2]
[328492848,1717444252209,-509.85545902,0.00027395,2]
[328492849,1717444252218,-258.08907319,0.00027395,2]
[328492850,1717444252318,-156.06212345,0.00027395,2]
[328492851,1717444252329,-155.23190461,0.00027395,2]
[328492852,1717444252338,-273.81649751,0.00027395,2]
[328492853,1717444252348,-196.790134,0.00027395,2]
[328492854,1717444252357,-196.790134,0.00027395,2]
[328492855,1717444252367,-151.0,0.00027395,2]
[328492856,1717444252377,-151.0,0.00027395,2]
[328492857,1717444252387,-156.172827,0.00027395,2]
[328492858,1717444252396,-151.0,0.00027395,2]
[328492859,1717444252411,-151.0,0.00027395,2]
[328492860,1717444252420,-151.0,0.00027395,2]
[328492861,1717444252430,-151.0,0.00027395,2]
[328492862,1717444252443,-151.0,0.00027395,2]
[328492863,1717444252452,-158.473275,0.00027395,2]
[328492864,1717444252462,-151.0,0.00027395,2]
[328492865,1717444252472,-889.431551,0.00027395,2]
[328492866,1717444252482,-889.431546,0.00027395,2]
[328492867,1717444252492,-787.33900514,0.00027396,2]
[328492868,1717444252501,-196.790134,0.00027397,2]
[328492869,1717444252511,-196.790134,0.00027397,2]
[328492870,1717444252520,-196.790134,0.00027397,2]
[328492871,1717444252529,-196.790134,0.00027397,2]
[328492872,1717444252539,-196.790134,0.00027397,2]
[328492873,1717444252548,-196.790134,0.00027397,2]
[328492874,1717444252557,-196.790134,0.00027397,2]
[328492875,1717444252567,-196.790137,0.00027397,2]
[328492876,1717444252577,-151.0,0.00027397,2]
[328492877,1717444252588,-500.0,0.00027397,2]
[328492878,1717444252598,-26060.6,0.00027397,6]
[328492879,1717444252607,-26060.6,0.00027397,6]
[328492880,1717444252616,-26060.6,0.00027397,6]
[328492881,1717444252627,-26060.6,0.00027397,6]
[328492882,1717444252636,-9906.50538866,0.00027397,6]
[328492933,1717445113941,1187.80144316,9.999e-05,2]
[328492935,1717445230193,-234.557136,0.0002258,4]
[328492936,1717445247128,-292.89644429,0.00022579,2]
[328492937,1717445353112,-254.5003019,0.0002048,2]
[328492947,1717445431940,-316.23475701,0.0002048,2]
[328493018,1717445437956,-12523.51718395,0.0002048,2]
[328493020,1717445437966,-591.71136473,0.0002048,2]
[328493021,1717445437975,-2070.87543186,0.00022578,2]
[328493023,1717445437984,-1353.71196964,0.0002258,2]
[328493025,1717445437993,-528.48374619,0.00022581,4]
[328493027,1717445438002,-24900.0,0.00022582,2]
[328493029,1717445438011,-166.666666,0.00023156,2]
[328493031,1717445438019,-189.99763459,0.00023727,2]
[328493033,1717445438032,-166.1029397,0.00023828,2]
[328493035,1717445438041,-29400.77984578,0.00025,2]
[328493037,1717445438050,-333.86307052,0.0002538,2]
[328493039,1717445438059,-846.21166663,0.0002548,2]
[328493041,1717445438068,-166.666666,0.00026,2]
[328493043,1717445438077,-166.666666,0.00026312,2]
[328493045,1717445438086,-3000.0,0.000265,2]
[328493047,1717445438094,-3000.0,0.0002651,2]
[328493049,1717445438104,-3000.0,0.0002652,2]
[328493050,1717445438113,-3000.0,0.0002653,2]
[328493052,1717445438123,-3000.0,0.0002654,2]
[328493054,1717445438132,-750.0,0.00026849,2]
[328493056,1717445438142,-396.861896,0.00026849,2]
[328493058,1717445438151,-164.97,0.000269,3]
[328493060,1717445438159,-164.97,0.000269,3]
[328493062,1717445438168,-164.97,0.000269,3]
[328493064,1717445438177,-164.97,0.000269,3]
[328493066,1717445438186,-164.97,0.000269,3]
[328493068,1717445438195,-164.97,0.000269,3]
[328493070,1717445438203,-164.97,0.000269,3]
[328493072,1717445438212,-164.97,0.000269,3]
[328493074,1717445438221,-164.97,0.000269,3]
[328493075,1717445438230,-164.97,0.000269,3]
[328493077,1717445438239,-164.97,0.000269,3]
[328493079,1717445438248,-164.97,0.000269,3]
[328493081,1717445438257,-164.97,0.000269,3]
[328493083,1717445438266,-164.97,0.000269,3]
[328493085,1717445438275,-164.97,0.000269,3]
[328493087,1717445438284,-164.97,0.000269,3]
[328493089,1717445438292,-164.97,0.000269,3]
[328493091,1717445438299,-164.97,0.000269,3]
[328493093,1717445438306,-164.97,0.000269,3]
[328493094,1717445438313,-164.97,0.000269,3]
[328493096,1717445438321,-164.6274192,0.00027,10]
[328493098,1717445438328,-1000.39986241,0.00027,2]
[328493100,1717445438335,-248.98827469,0.00027047,2]
[328493101,1717445438342,-248.98827469,0.000272,2]
[328493103,1717445438349,-175.46,0.00027286,3]
[328493105,1717445438357,-10344.47,0.00027286,3]
[328493107,1717445438366,-500.0,0.00027296,2]
[328493108,1717445438375,-500.0,0.00027296,2]
[328493110,1717445438384,-500.0,0.00027296,2]
[328493112,1717445438392,-552.78187949,0.00027296,2]
[328493113,1717445438401,-500.0,0.00027296,2]
[328493115,1717445438410,-384.06200437,0.00027296,2]
[328493117,1717445438418,-517.14259802,0.00027296,2]
[328493118,1717445438427,-500.0,0.00027296,2]
[328493120,1717445438435,-500.0,0.00027296,2]
[328493121,1717445438444,-500.0,0.00027296,2]
[328493122,1717445438453,-631.54747276,0.00027296,2]
[328493123,1717445438462,-500.0,0.00027296,2]
[328493124,1717445438471,-500.0,0.00027296,2]
[328493125,1717445438479,-500.0,0.00027296,2]
[328493126,1717445438488,-500.0,0.00027296,2]
[328493127,1717445438496,-500.0,0.00027296,2]
[328493128,1717445438505,-500.0,0.00027296,2]
[328493129,1717445438514,-500.0,0.00027296,2]
[328493130,1717445438522,-366.61659882,0.00027296,2]
[328493131,1717445438531,-500.0,0.00027296,2]
[328493132,1717445438540,-500.0,0.00027296,2]
[328493133,1717445438549,-500.0,0.00027296,2]
[328493134,1717445438558,-500.0,0.00027296,2]
[328493135,1717445438567,-500.0,0.00027296,2]
[328493136,1717445438576,-500.0,0.00027296,2]
[328493137,1717445438585,-500.0,0.00027296,2]
[328493138,1717445438594,-500.0,0.00027296,2]
[328493139,1717445438603,-500.0,0.00027296,2]
[328493140,1717445438611,-500.0,0.00027296,2]
[328493141,1717445438620,-500.0,0.00027296,2]
[328493142,1717445438629,-500.0,0.00027296,2]
[328493143,1717445438638,-500.0,0.00027296,2]
[328493144,1717445438646,-500.0,0.00027296,2]
[328493145,1717445438655,-500.0,0.00027296,2]
[328493146,1717445438664,-500.0,0.00027296,2]
[328493147,1717445438672,-322.84237447,0.00027296,2]
[328493148,1717445438681,-14148.9153723,0.00027297,7]
[328493149,1717445438690,-76535.63703651,0.00027297,3]
[328493150,1717445438698,-928.75310893,0.00027297,2]
[328493151,1717445439409,-1039.58689107,0.00027297,2]
[328493152,1717445439418,-270.0,0.000273,2]
[328493153,1717445439427,-212.71800123,0.00027335,2]
[328493154,1717445439437,-4233.91851657,0.00027358,2]
[328493155,1717445439446,-385.11389544,0.00027395,2]
[328493156,1717445439455,-155.85682392,0.00027395,2]
[328493157,1717445439464,-9419.72161606,0.00027395,2]
[328493170,1717445443178,-0.00949875,0.00025859,2]
[328493188,1717446437153,-268.96804931,0.00019192,2]
[328493192,1717446547120,-650.08412822,0.000189,2]
[328493193,1717446547140,-2093.42945296,0.00019192,2]
[328493194,1717446547158,-300.01081618,0.00019192,2]
[328493195,1717446547179,-22080.54041389,0.0001929,2]
[328493198,1717446564110,-1906.19996123,0.00019092,2]
[328493199,1717446564128,-2093.42945296,0.00019192,2]
[328493200,1717446564147,-19978.89101471,0.0001929,2]
[328493201,1717446564166,-24900.0,0.00019291,2]
[328493202,1717446567644,208.01072495,0.00019192,2]
[328493237,1717446632131,-209.46028812,0.00019192,2]
[328493239,1717446632140,-1092.53971188,0.00019192,2]
[328493247,1717446632206,-1000.88974108,0.00019192,2]
[328493249,1717446632215,-1353.71196964,0.0002,2]
[328493251,1717446632225,-154.9690062,0.0002,2]
[328493253,1717446632234,-267.08855665,0.0002038,2]
[328493255,1717446632243,-11160.11243116,0.0002048,2]
[328493257,1717446632252,-2070.87543186,0.00021,2]
[328493259,1717446632261,-267.08855665,0.00022109,2]
[328493261,1717446632270,-208.8339618,0.0002351,2]
[328493263,1717446632279,-267.08855665,0.00023839,2]
[328493265,1717446632289,-650.08412822,0.000239,2]
[328493267,1717446632298,-167.596119,0.00025294,2]
[328493269,1717446632307,-267.08855665,0.00025568,2]
[328493271,1717446632316,-762.0201281,0.00025859,2]
[328493273,1717446632325,-241.47503369,0.00025859,2]
[328493274,1717446632335,-166.666666,0.00026,2]
[328493276,1717446632344,-922.4720001,0.00026025,2]
[328493277,1717446632353,-3000.0,0.000265,2]
[328493279,1717446632362,-357.85865081,0.00026799,2]
[328493281,1717446632371,-788.29454664,0.00026803,2]
[328493282,1717446632380,-235.25,0.0002681,3]
[328493284,1717446632389,-705.75,0.0002681,3]
[328493285,1717446632403,-423.893802,0.00026849,2]
[328493286,1717446632413,-326.106198,0.00026849,2]
[328493287,1717446632423,-4223.75127225,0.00026855,2]
[328493288,1717446632431,-376.64,0.000269,3]
[328493289,1717446632442,-376.64,0.000269,3]
[328493290,1717446632451,-376.64,0.000269,3]
[328493291,1717446632459,-376.64,0.000269,3]
[328493292,1717446632468,-376.64,0.000269,3]
[328493293,1717446632479,-376.64,0.000269,3]
[328493294,1717446632488,-376.64,0.000269,3]
[328493295,1717446632497,-376.64,0.000269,3]
[328493296,1717446632506,-376.64,0.000269,3]
[328493297,1717446632516,-376.64,0.000269,3]
[328493298,1717446632527,-376.64,0.000269,3]
[328493299,1717446632537,-376.64,0.000269,3]
[328493300,1717446632548,-376.64,0.000269,3]
[328493301,1717446632557,-376.64,0.000269,3]
[328493302,1717446632567,-376.64,0.000269,3]
[328493303,1717446632576,-376.64,0.000269,3]
[328493304,1717446632587,-376.64,0.000269,3]
[328493305,1717446632596,-376.64,0.000269,3]
[328493306,1717446632605,-376.64,0.000269,3]
[328493307,1717446632615,-376.64,0.000269,3]
[328493308,1717446632624,-232.38905637,0.00027068,2]
[328493309,1717446632633,-357.85865079,0.00027099,2]
[328493310,1717446632644,-232.38905637,0.00027102,2]
[328493311,1717446632652,-232.38905637,0.00027174,2]
[328493312,1717446632662,-232.38905637,0.00027184,2]
[328493313,1717446632671,-232.38905637,0.00027263,2]
[328493314,1717446632680,-176.18304414,0.0002729,2]
[328493315,1717446632690,-176.18304413,0.00027294,2]
[328493316,1717446632699,-267.08855665,0.00027297,2]
[328493317,1717446632708,-176.18304413,0.00027297,2]
[328493318,1717446632717,-270.0,0.000273,2]
[328493319,1717446632726,-232.38905637,0.00027307,2]
[328493320,1717446632735,-232.38905637,0.00027308,2]
[328493321,1717446632743,-150.0,0.00027366,2]
[328493322,1717446632752,-498.0,0.00027366,2]
[328493323,1717446632761,-4550.17,0.00027385,3]
[328493324,1717446632771,-7862.03,0.00027385,3]
[328493325,1717446632780,-150.0,0.0002739,14]
[328493326,1717446632789,-559.98497965,0.00027394,2]
[328493327,1717446632798,-500.0,0.00027394,2]
[328493328,1717446632808,-484.9489169,0.00027394,2]
[328493329,1717446632817,-236.90651978,0.00027394,2]
[328493330,1717446632827,-500.0,0.00027394,2]
[328493331,1717446632836,-164.59800187,0.00027394,2]
[328493332,1717446632846,-596.85271234,0.00027394,2]
[328493333,1717446632855,-555.14277941,0.00027394,2]
[328493334,1717446632864,-500.0,0.00027394,2]
[328493335,1717446632874,-500.0,0.00027394,2]
[328493336,1717446632883,-500.0,0.00027394,2]
[328493337,1717446632892,-500.0,0.00027394,2]
[328493338,1717446632902,-6356.10841473,0.00027395,2]
[328493339,1717446632915,-2059.18,0.00027395,2]
[328493340,1717446632927,-4030.50152923,0.00027395,2]
[328493391,1717446638127,-2998.21672153,0.00027395,2]
[328493541,1717446646390,-719.79,0.00019192,2]
[328493543,1717446646850,-631.8415964,0.00019192,2]
[328493544,1717446646860,-6551.69,0.00027387,3]
[328493545,1717446646869,-784.7009724,0.00027395,2]
[328493546,1717446669383,157.44019008,9.999e-05,2]
[328493547,1717446669407,169.865378,9.999e-05,2]
[328493548,1717446669443,332.03951908,9.999e-05,2]
[328493552,1717447036605,918.73962919,0.00029788,30]
[328493570,1717447745135,-211.666805,0.00018814,2]
[328493571,1717447745157,-375.16114092,0.00018897,2]
[328493572,1717447745178,-59519.31929914,0.00018996,2]
[328493573,1717447745200,-24900.0,0.00018997,2]
[328493574,1717447745220,-169.865378,0.00019178,2]
[328493575,1717447745242,-347.7791157,0.000199,2]
[328493576,1717447745262,-470.5,0.0001999,3]
[328493577,1717447745281,-239.9935627,0.00019999,2]
[328493578,1717447745301,-452.20404832,0.00019999,2]
[328493579,1717447745321,-429.05581371,0.00019999,2]
[328493580,1717447745343,-500.0,0.00019999,2]
[328493581,1717447745376,-19491.08071009,0.0002,2]
[328493582,1717447745398,-23787.90233794,0.0002,2]
[328493583,1717447745419,-2956.17082048,0.0002,2]
[328493584,1717447745439,-12014.77174184,0.0002,2]
[328493585,1717447745459,-1353.71196964,0.0002,2]
[328493586,1717447745481,-375.16114091,0.00020326,2]
[328493587,1717447745502,-3270.11193025,0.00021,2]
[328493588,1717447745522,-414.35540758,0.00021,2]
[328493589,1717447745542,-347.7791157,0.0002115,2]
[328493590,1717447745563,-375.16114091,0.00021755,2]
[328493591,1717447745583,-3000.0,0.000219,2]
[328493592,1717447745605,-5020.65974,0.0002191,2]
[328493593,1717447745625,-347.7791157,0.000224,2]
[328493594,1717447745645,-375.16114091,0.00023184,2]
[328493595,1717447745665,-347.7791157,0.0002365,2]
[328493596,1717447745685,-528.48374619,0.0002371,4]
[328493597,1717447745705,-1229.29848746,0.0002383,7]
[328493598,1717447745727,-21274.56193042,0.0002383,2]
[328493599,1717447745751,-7074.45768615,0.0002385,7]
[328493600,1717447745772,-87514.08749766,0.0002385,2]
[328493601,1717447745792,-375.16114091,0.00024613,2]
[328493602,1717447745816,-542.68894043,0.00024899,2]
[328493603,1717447745836,-202.05120671,0.00024899,2]
[328493604,1717447745858,-347.7791157,0.000249,2]
[328493605,1717447745878,-28129.33195653,0.00024997,2]
[328493606,1717447745897,-457.17016607,0.00025,2]
[328493607,1717447745916,-52378.74217987,0.00025,2]
[328493608,1717447745936,-154.9690062,0.00025,2]
[328493609,1717447745955,-1186.69325105,0.00025297,2]
[328493610,1717447745975,-208.98418007,0.00025746,2]
[328493611,1717447745994,-468.23719767,0.00025747,2]
[328493612,1717447746014,-29400.77984578,0.00025747,2]
[328493613,1717447746033,-269949.8301397,0.00025748,30]
[328493638,1717447832461,-2341.66259621,0.00025738,3]
[328493692,1717447838638,-4771.61740379,0.00025738,3]
[328493693,1717447838647,-5927.73,0.00025738,3]
[328493694,1717447838658,-155.22100856,0.00025746,2]
[328493695,1717447838819,-825.84952749,0.00025746,2]
[328493696,1717447838828,-2369.17907467,0.00025746,2]
[328493697,1717447838838,-154.95351395,0.00025747,2]
[328493698,1717447838848,-4728.28408664,0.00025747,2]